[Event "Titled Tuesday Blitz July 11 Late 2023"]
[White "kripri"]
[Black "Ricaurte Lopez, Juan Carlos"]
[BlackFideId "3600327"]
[WhiteElo "2321"]
[BlackElo "2145"]
[Result "1-0"]
[Round "11"]
[TimeControl "180+2"]
[Date "2023.07.11"]
[WhiteClock "0:00:04"]
[BlackClock "0:00:00"]
[Board "94"]

1. d4 {[%clk 0:03:00]}  Nf6 {[%clk 0:02:54]} 2. Bf4 {[%clk 0:03:01]}  e6 {[%clk 0:02:53]} 3. e3 {[%clk 0:03:01]}  b6 {[%clk 0:02:51]} 4. c4 {[%clk 0:03:01]}  Bb7 {[%clk 0:02:50]} 5. Nc3 {[%clk 0:03:02]}  Bb4 {[%clk 0:02:42]} 6. f3 {[%clk 0:02:53]}  O-O {[%clk 0:02:38]} 7. Bd3 {[%clk 0:02:48]}  c5 {[%clk 0:02:34]} 8. a3 {[%clk 0:02:46]}  Ba5 {[%clk 0:02:32]} 9. Ne2 {[%clk 0:02:42]}  d5 {[%clk 0:02:27]} 10. O-O {[%clk 0:02:33]}  dxc4 {[%clk 0:02:23]} 11. Bxc4 {[%clk 0:02:32]}  cxd4 {[%clk 0:02:18]} 12. exd4 {[%clk 0:02:32]}  Bxc3 {[%clk 0:02:12]} 13. Nxc3 {[%clk 0:02:32]}  Nc6 {[%clk 0:02:07]} 14. d5 {[%clk 0:02:27]}  Na5 {[%clk 0:02:03]} 15. Ba2 {[%clk 0:02:22]}  exd5 {[%clk 0:02:00]} 16. Be5 {[%clk 0:02:19]}  Nc4 {[%clk 0:01:56]} 17. Bxc4 {[%clk 0:02:01]}  dxc4 {[%clk 0:01:52]} 18. Qc2 {[%clk 0:02:02]}  Nd5 {[%clk 0:01:28]} 19. Rfe1 {[%clk 0:01:33]}  f6 {[%clk 0:01:20]} 20. Bd4 {[%clk 0:01:28]}  Nf4 {[%clk 0:01:14]} 21. Be3 {[%clk 0:01:18]}  Nd3 {[%clk 0:01:11]} 22. Re2 {[%clk 0:01:14]}  Re8 {[%clk 0:01:08]} 23. Rd1 {[%clk 0:01:09]}  a6 {[%clk 0:01:06]} 24. b3 {[%clk 0:01:01]}  b5 {[%clk 0:01:04]} 25. bxc4 {[%clk 0:01:01]}  bxc4 {[%clk 0:01:04]} 26. Na4 {[%clk 0:00:52]}  Rc8 {[%clk 0:00:53]} 27. Bb6 {[%clk 0:00:29]}  Qd5 {[%clk 0:00:45]} 28. Nc3 {[%clk 0:00:20]}  Qc6 {[%clk 0:00:39]} 29. Bd4 {[%clk 0:00:20]}  Nf4 {[%clk 0:00:30]} 30. Rxe8+ {[%clk 0:00:18]}  Rxe8 {[%clk 0:00:28]} 31. Ne4 {[%clk 0:00:17]}  h6 {[%clk 0:00:19]} 32. Bc5 {[%clk 0:00:17]}  Qb5 {[%clk 0:00:13]} 33. Be3 {[%clk 0:00:10]}  Bxe4 {[%clk 0:00:12]} 34. fxe4 {[%clk 0:00:09]}  Nd3 {[%clk 0:00:11]} 35. Qc3 {[%clk 0:00:06]}  Rxe4 {[%clk 0:00:11]} 36. Bd4 {[%clk 0:00:06]}  Qd5 {[%clk 0:00:09]} 37. Bf2 {[%clk 0:00:06]}  Re2 {[%clk 0:00:08]} 38. Rf1 {[%clk 0:00:04]}  Nf4 {[%clk 0:00:06]} 39. Qf3 {[%clk 0:00:04]}  Qxf3 {[%clk 0:00:05]} 40. gxf3 {[%clk 0:00:04]}  c3 {[%clk 0:00:04]} 41. Rc1 {[%clk 0:00:04]}  Rxf2 {[%clk 0:00:00]} 42. Rxc3 {[%clk 0:00:04]} 1-0


[Site "https://www.chess.com"]

[Event "Titled Tuesday Blitz July 11 Late 2023"]
[White "Tsukerman, Julia"]
[Black "Weisz, Bryan"]
[WhiteFideId "2621649"]
[BlackFideId "30934133"]
[WhiteElo "2102"]
[BlackElo "2318"]
[Result "1-0"]
[Round "11"]
[TimeControl "180+2"]
[Date "2023.07.11"]
[WhiteClock "0:00:35"]
[BlackClock "0:00:00"]
[Board "95"]

1. e4 {[%clk 0:03:00]}  e5 {[%clk 0:02:55]} 2. Nf3 {[%clk 0:02:50]}  Nc6 {[%clk 0:02:48]} 3. Bb5 {[%clk 0:02:49]}  Nf6 {[%clk 0:02:48]} 4. d3 {[%clk 0:02:48]}  Bc5 {[%clk 0:02:43]} 5. c3 {[%clk 0:02:48]}  d6 {[%clk 0:02:33]} 6. O-O {[%clk 0:02:47]}  Bb6 {[%clk 0:02:25]} 7. Nbd2 {[%clk 0:02:40]}  O-O {[%clk 0:02:24]} 8. h3 {[%clk 0:02:37]}  Ne7 {[%clk 0:01:46]} 9. Re1 {[%clk 0:02:33]}  Ng6 {[%clk 0:01:43]} 10. Nf1 {[%clk 0:02:32]}  c6 {[%clk 0:01:27]} 11. Ba4 {[%clk 0:02:27]}  Bc7 {[%clk 0:01:18]} 12. d4 {[%clk 0:02:22]}  Nxe4 {[%clk 0:00:55]} 13. Rxe4 {[%clk 0:02:09]}  d5 {[%clk 0:00:56]} 14. Re1 {[%clk 0:02:02]}  e4 {[%clk 0:00:56]} 15. N3h2 {[%clk 0:01:59]}  f5 {[%clk 0:00:56]} 16. f3 {[%clk 0:01:45]}  Qh4 {[%clk 0:00:43]} 17. Be3 {[%clk 0:01:34]}  f4 {[%clk 0:00:25]} 18. Bf2 {[%clk 0:01:30]}  Qg5 {[%clk 0:00:25]} 19. fxe4 {[%clk 0:01:22]}  Bxh3 {[%clk 0:00:24]} 20. Qf3 {[%clk 0:01:22]}  Be6 {[%clk 0:00:20]} 21. exd5 {[%clk 0:01:12]}  Nh4 {[%clk 0:00:18]} 22. Bxh4 {[%clk 0:01:09]}  Qxh4 {[%clk 0:00:17]} 23. dxe6 {[%clk 0:01:06]}  Rf6 {[%clk 0:00:13]} 24. e7 {[%clk 0:01:02]}  Re8 {[%clk 0:00:12]} 25. Bb3+ {[%clk 0:01:02]}  Kh8 {[%clk 0:00:12]} 26. Qg4 {[%clk 0:00:59]}  Qh6 {[%clk 0:00:09]} 27. Qh3 {[%clk 0:00:57]}  Qg5 {[%clk 0:00:06]} 28. Qd7 {[%clk 0:00:55]}  Qh5 {[%clk 0:00:04]} 29. Re4 {[%clk 0:00:47]}  f3 {[%clk 0:00:04]} 30. Qg4 {[%clk 0:00:44]}  f2+ {[%clk 0:00:02]} 31. Kh1 {[%clk 0:00:43]}  Qa5 {[%clk 0:00:01]} 32. Rd1 {[%clk 0:00:39]}  Rg6 {[%clk 0:00:00]} 33. Qd7 {[%clk 0:00:35]} 1-0


[Site "https://www.chess.com"]

[Event "Titled Tuesday Blitz July 11 Late 2023"]
[White "AndresDelgado77"]
[Black "Navyblue1"]
[WhiteElo "2312"]
[BlackElo "1878"]
[Result "1-0"]
[Round "11"]
[TimeControl "180+2"]
[Date "2023.07.11"]
[WhiteClock "0:00:10"]
[BlackClock "0:00:03"]
[Board "96"]

1. Nc3 {[%clk 0:02:58]}  c5 {[%clk 0:02:57]} 2. Nf3 {[%clk 0:02:58]}  d5 {[%clk 0:02:56]} 3. d4 {[%clk 0:02:57]}  cxd4 {[%clk 0:02:55]} 4. Qxd4 {[%clk 0:02:57]}  Nf6 {[%clk 0:02:53]} 5. e4 {[%clk 0:02:56]}  Nc6 {[%clk 0:02:52]} 6. Bb5 {[%clk 0:02:56]}  e6 {[%clk 0:02:15]} 7. exd5 {[%clk 0:02:41]}  Nxd5 {[%clk 0:02:12]} 8. Ne5 {[%clk 0:02:22]}  Bd7 {[%clk 0:02:04]} 9. Bxc6 {[%clk 0:01:45]}  Bxc6 {[%clk 0:02:01]} 10. Nxc6 {[%clk 0:01:42]}  bxc6 {[%clk 0:02:00]} 11. O-O {[%clk 0:01:40]}  Qf6 {[%clk 0:01:42]} 12. Qc4 {[%clk 0:01:36]}  Rc8 {[%clk 0:01:28]} 13. Nxd5 {[%clk 0:01:18]}  exd5 {[%clk 0:01:27]} 14. Re1+ {[%clk 0:01:17]}  Be7 {[%clk 0:01:25]} 15. Qb4 {[%clk 0:00:52]}  Rd8 {[%clk 0:00:18]} 16. Bd2 {[%clk 0:00:28]}  Kf8 {[%clk 0:00:12]} 17. Qb7 {[%clk 0:00:26]}  Bc5 {[%clk 0:00:09]} 18. Bc3 {[%clk 0:00:19]}  Qxf2+ {[%clk 0:00:09]} 19. Kh1 {[%clk 0:00:19]}  d4 {[%clk 0:00:08]} 20. Rf1 {[%clk 0:00:16]}  Qxf1+ {[%clk 0:00:04]} 21. Rxf1 {[%clk 0:00:15]}  f6 {[%clk 0:00:05]} 22. Bb4 {[%clk 0:00:15]}  Bxb4 {[%clk 0:00:04]} 23. Qxb4+ {[%clk 0:00:15]}  Kf7 {[%clk 0:00:05]} 24. Qb7+ {[%clk 0:00:14]}  Kg6 {[%clk 0:00:06]} 25. Qxc6 {[%clk 0:00:13]}  Rc8 {[%clk 0:00:05]} 26. Qe4+ {[%clk 0:00:13]}  Kf7 {[%clk 0:00:05]} 27. Qd5+ {[%clk 0:00:12]}  Kg6 {[%clk 0:00:05]} 28. Qf5+ {[%clk 0:00:11]}  Kf7 {[%clk 0:00:06]} 29. Qd7+ {[%clk 0:00:10]}  Kg6 {[%clk 0:00:06]} 30. Rf3 {[%clk 0:00:11]}  h5 {[%clk 0:00:03]} 31. Rg3+ {[%clk 0:00:10]} 1-0


[Site "https://www.chess.com"]

[Event "Titled Tuesday Blitz July 11 Late 2023"]
[White "Novikov, Evgenij"]
[Black "Sarkar, Justin"]
[WhiteFideId "4125380"]
[BlackFideId "2010011"]
[WhiteElo "2444"]
[BlackElo "2245"]
[Result "1-0"]
[Round "11"]
[TimeControl "180+2"]
[Date "2023.07.11"]
[WhiteClock "0:01:15"]
[BlackClock "0:00:00"]
[Board "98"]

1. d4 {[%clk 0:03:00]}  e6 {[%clk 0:02:35]} 2. c4 {[%clk 0:02:54]}  f5 {[%clk 0:02:34]} 3. Nc3 {[%clk 0:02:54]}  Nf6 {[%clk 0:02:32]} 4. g3 {[%clk 0:02:54]}  Be7 {[%clk 0:02:30]} 5. Bg2 {[%clk 0:02:55]}  O-O {[%clk 0:02:28]} 6. d5 {[%clk 0:02:54]}  a5 {[%clk 0:02:11]} 7. Nf3 {[%clk 0:02:50]}  Na6 {[%clk 0:02:02]} 8. Be3 {[%clk 0:02:50]}  Bc5 {[%clk 0:01:55]} 9. Bxc5 {[%clk 0:02:46]}  Nxc5 {[%clk 0:01:55]} 10. Qd4 {[%clk 0:02:46]}  d6 {[%clk 0:01:48]} 11. dxe6 {[%clk 0:02:43]}  Bxe6 {[%clk 0:01:44]} 12. O-O {[%clk 0:02:40]}  Qe7 {[%clk 0:01:23]} 13. Ng5 {[%clk 0:02:34]}  Rad8 {[%clk 0:01:13]} 14. Nxe6 {[%clk 0:02:32]}  Qxe6 {[%clk 0:01:07]} 15. Nd5 {[%clk 0:02:27]}  c6 {[%clk 0:01:00]} 16. Nf4 {[%clk 0:02:22]}  Qe5 {[%clk 0:00:57]} 17. Rfd1 {[%clk 0:02:21]}  Rfe8 {[%clk 0:00:52]} 18. e3 {[%clk 0:02:18]}  g5 {[%clk 0:00:42]} 19. Ne2 {[%clk 0:02:16]}  Nfe4 {[%clk 0:00:35]} 20. Rac1 {[%clk 0:02:02]}  Qe7 {[%clk 0:00:25]} 21. Nc3 {[%clk 0:01:51]}  Nxc3 {[%clk 0:00:22]} 22. Qxc3 {[%clk 0:01:50]}  a4 {[%clk 0:00:19]} 23. b4 {[%clk 0:01:49]}  axb3 {[%clk 0:00:18]} 24. axb3 {[%clk 0:01:49]}  Qe5 {[%clk 0:00:16]} 25. Rd4 {[%clk 0:01:45]}  Ne4 {[%clk 0:00:10]} 26. Qc2 {[%clk 0:01:36]}  h5 {[%clk 0:00:09]} 27. Qe2 {[%clk 0:01:27]}  g4 {[%clk 0:00:07]} 28. f4 {[%clk 0:01:20]}  Qf6 {[%clk 0:00:03]} 29. Bxe4 {[%clk 0:01:19]}  fxe4 {[%clk 0:00:02]} 30. Rcd1 {[%clk 0:01:19]}  Kg7 {[%clk 0:00:01]} 31. Qa2 {[%clk 0:01:17]}  Re7 {[%clk 0:00:00]} 32. Qa5 {[%clk 0:01:15]} 1-0


[Site "https://www.chess.com"]

[Event "Titled Tuesday Blitz July 11 Late 2023"]
[White "Cluke86"]
[Black "Alexikov, Alexander"]
[BlackFideId "14103958"]
[WhiteElo "2329"]
[BlackElo "2224"]
[Result "0-1"]
[Round "11"]
[TimeControl "180+2"]
[Date "2023.07.11"]
[WhiteClock "0:00:02"]
[BlackClock "0:00:30"]
[Board "100"]

1. e4 {[%clk 0:03:00]}  c5 {[%clk 0:02:59]} 2. Nc3 {[%clk 0:03:00]}  d6 {[%clk 0:02:58]} 3. f4 {[%clk 0:02:59]}  Nc6 {[%clk 0:02:57]} 4. Nf3 {[%clk 0:02:59]}  g6 {[%clk 0:02:57]} 5. Bb5 {[%clk 0:02:55]}  Bg7 {[%clk 0:02:56]} 6. d3 {[%clk 0:02:54]}  Bd7 {[%clk 0:02:54]} 7. Bxc6 {[%clk 0:02:51]}  Bxc6 {[%clk 0:02:52]} 8. O-O {[%clk 0:02:52]}  e6 {[%clk 0:02:52]} 9. Qe1 {[%clk 0:02:51]}  Ne7 {[%clk 0:02:49]} 10. f5 {[%clk 0:02:45]}  gxf5 {[%clk 0:02:46]} 11. Bg5 {[%clk 0:02:37]}  fxe4 {[%clk 0:02:44]} 12. dxe4 {[%clk 0:02:35]}  Qd7 {[%clk 0:02:37]} 13. Rd1 {[%clk 0:02:31]}  O-O-O {[%clk 0:02:25]} 14. Qh4 {[%clk 0:02:10]}  Rde8 {[%clk 0:02:04]} 15. Qg3 {[%clk 0:02:02]}  Bxc3 {[%clk 0:01:48]} 16. bxc3 {[%clk 0:02:01]}  Bxe4 {[%clk 0:01:35]} 17. Ne5 {[%clk 0:01:58]}  Qc7 {[%clk 0:01:28]} 18. Nxf7 {[%clk 0:01:55]}  Nf5 {[%clk 0:01:26]} 19. Rxf5 {[%clk 0:01:17]}  exf5 {[%clk 0:01:23]} 20. Nxd6+ {[%clk 0:01:16]}  Kb8 {[%clk 0:01:23]} 21. Nxe4 {[%clk 0:01:07]}  Rxe4 {[%clk 0:01:20]} 22. Qf3 {[%clk 0:00:43]}  Rg8 {[%clk 0:01:07]} 23. Bh6 {[%clk 0:00:28]}  Reg4 {[%clk 0:01:00]} 24. g3 {[%clk 0:00:20]}  f4 {[%clk 0:00:55]} 25. Kg2 {[%clk 0:00:08]}  Rxg3+ {[%clk 0:00:34]} 26. hxg3 {[%clk 0:00:08]}  Rxg3+ {[%clk 0:00:33]} 27. Qxg3 {[%clk 0:00:07]}  fxg3 {[%clk 0:00:33]} 28. Rf1 {[%clk 0:00:07]}  Qc6+ {[%clk 0:00:32]} 29. Kxg3 {[%clk 0:00:02]}  Qxh6 {[%clk 0:00:30]} 0-1


[Site "https://www.chess.com"]

[Event "Titled Tuesday Blitz July 11 Late 2023"]
[White "Shapiro, Daniel"]
[Black "Kopacz, Grzegorz"]
[WhiteFideId "2001780"]
[BlackFideId "1109880"]
[WhiteElo "2292"]
[BlackElo "2224"]
[Result "1-0"]
[Round "11"]
[TimeControl "180+2"]
[Date "2023.07.11"]
[WhiteClock "0:01:22"]
[BlackClock "0:00:34"]
[Board "102"]

1. d4 {[%clk 0:03:00]}  Nf6 {[%clk 0:02:59]} 2. c4 {[%clk 0:03:00]}  c5 {[%clk 0:02:56]} 3. d5 {[%clk 0:02:59]}  g6 {[%clk 0:02:55]} 4. Nc3 {[%clk 0:02:59]}  Bg7 {[%clk 0:02:55]} 5. e4 {[%clk 0:02:59]}  d6 {[%clk 0:02:56]} 6. h3 {[%clk 0:02:59]}  e6 {[%clk 0:02:54]} 7. Nf3 {[%clk 0:02:59]}  O-O {[%clk 0:02:53]} 8. Bd3 {[%clk 0:02:58]}  exd5 {[%clk 0:02:53]} 9. cxd5 {[%clk 0:02:58]}  a6 {[%clk 0:02:53]} 10. a4 {[%clk 0:02:57]}  Re8 {[%clk 0:02:53]} 11. O-O {[%clk 0:02:56]}  Qc7 {[%clk 0:02:46]} 12. Bf4 {[%clk 0:02:53]}  Nbd7 {[%clk 0:02:42]} 13. Rc1 {[%clk 0:02:47]}  Nh5 {[%clk 0:02:42]} 14. Bh2 {[%clk 0:02:45]}  Ne5 {[%clk 0:02:41]} 15. Be2 {[%clk 0:02:40]}  Nxf3+ {[%clk 0:02:16]} 16. Bxf3 {[%clk 0:02:39]}  Nf6 {[%clk 0:02:15]} 17. b4 {[%clk 0:02:30]}  b6 {[%clk 0:01:56]} 18. a5 {[%clk 0:02:29]}  b5 {[%clk 0:01:46]} 19. bxc5 {[%clk 0:02:15]}  Qxc5 {[%clk 0:01:45]} 20. Na4 {[%clk 0:02:10]}  Qb4 {[%clk 0:01:43]} 21. Nb6 {[%clk 0:02:09]}  Rb8 {[%clk 0:01:38]} 22. Qe1 {[%clk 0:01:53]}  Qxe1 {[%clk 0:01:11]} 23. Rfxe1 {[%clk 0:01:52]}  Bf8 {[%clk 0:01:04]} 24. e5 {[%clk 0:01:34]}  dxe5 {[%clk 0:00:58]} 25. Bxe5 {[%clk 0:01:34]}  Nd7 {[%clk 0:00:50]} 26. Bxb8 {[%clk 0:01:26]}  Rxe1+ {[%clk 0:00:49]} 27. Rxe1 {[%clk 0:01:26]}  Nxb8 {[%clk 0:00:41]} 28. Re8 {[%clk 0:01:26]}  b4 {[%clk 0:00:35]} 29. Rxc8 {[%clk 0:01:23]}  b3 {[%clk 0:00:34]} 30. Rxb8 {[%clk 0:01:23]}  b2 {[%clk 0:00:34]} 31. Nc4 {[%clk 0:01:22]} 1-0


[Site "https://www.chess.com"]

[Event "Titled Tuesday Blitz July 11 Late 2023"]
[White "Hartikainen, Jarmo"]
[Black "Gyulamiryan-koryun"]
[WhiteFideId "503134"]
[WhiteElo "2103"]
[BlackElo "1867"]
[Result "1/2-1/2"]
[Round "11"]
[TimeControl "180+2"]
[Date "2023.07.11"]
[WhiteClock "0:00:06"]
[BlackClock "0:00:17"]
[Board "108"]

1. e4 {[%clk 0:03:00]}  e5 {[%clk 0:02:53]} 2. Nf3 {[%clk 0:03:00]}  Nc6 {[%clk 0:02:52]} 3. Bc4 {[%clk 0:03:00]}  Nf6 {[%clk 0:02:51]} 4. d3 {[%clk 0:02:59]}  Be7 {[%clk 0:02:50]} 5. c3 {[%clk 0:02:58]}  O-O {[%clk 0:02:50]} 6. O-O {[%clk 0:02:54]}  d5 {[%clk 0:02:48]} 7. exd5 {[%clk 0:02:53]}  Nxd5 {[%clk 0:02:48]} 8. h3 {[%clk 0:02:49]}  Nb6 {[%clk 0:02:47]} 9. Bb5 {[%clk 0:02:44]}  Bd7 {[%clk 0:02:46]} 10. Bxc6 {[%clk 0:02:38]}  Bxc6 {[%clk 0:02:46]} 11. Nxe5 {[%clk 0:02:38]}  Qd5 {[%clk 0:02:26]} 12. Nxc6 {[%clk 0:02:36]}  Qxc6 {[%clk 0:02:26]} 13. Nd2 {[%clk 0:02:16]}  Rad8 {[%clk 0:02:24]} 14. Nf3 {[%clk 0:02:13]}  Bf6 {[%clk 0:02:14]} 15. d4 {[%clk 0:01:59]}  Nd5 {[%clk 0:02:07]} 16. Qb3 {[%clk 0:01:40]}  a5 {[%clk 0:01:57]} 17. Bg5 {[%clk 0:01:32]}  a4 {[%clk 0:01:55]} 18. Qc2 {[%clk 0:01:22]}  a3 {[%clk 0:01:54]} 19. Bxf6 {[%clk 0:01:14]}  Nxf6 {[%clk 0:01:44]} 20. bxa3 {[%clk 0:01:05]}  Ne4 {[%clk 0:01:22]} 21. Ne5 {[%clk 0:00:57]}  Qd5 {[%clk 0:01:15]} 22. Rfe1 {[%clk 0:00:52]}  Nf6 {[%clk 0:01:07]} 23. Qb3 {[%clk 0:00:51]}  c5 {[%clk 0:01:01]} 24. Qxd5 {[%clk 0:00:49]}  Rxd5 {[%clk 0:01:00]} 25. Rad1 {[%clk 0:00:34]}  Rfd8 {[%clk 0:00:54]} 26. Ng4 {[%clk 0:00:24]}  Nxg4 {[%clk 0:00:52]} 27. hxg4 {[%clk 0:00:24]}  cxd4 {[%clk 0:00:52]} 28. Rxd4 {[%clk 0:00:22]}  g6 {[%clk 0:00:42]} 29. Rxd5 {[%clk 0:00:21]}  Rxd5 {[%clk 0:00:42]} 30. Rb1 {[%clk 0:00:20]}  Ra5 {[%clk 0:00:37]} 31. Rxb7 {[%clk 0:00:19]}  Rxa3 {[%clk 0:00:36]} 32. Kh2 {[%clk 0:00:13]}  Rxc3 {[%clk 0:00:36]} 33. a4 {[%clk 0:00:13]}  Ra3 {[%clk 0:00:36]} 34. Ra7 {[%clk 0:00:12]}  Kg7 {[%clk 0:00:35]} 35. f3 {[%clk 0:00:12]}  h5 {[%clk 0:00:34]} 36. Kg3 {[%clk 0:00:12]}  hxg4 {[%clk 0:00:31]} 37. Kxg4 {[%clk 0:00:12]}  Kf6 {[%clk 0:00:30]} 38. Kf4 {[%clk 0:00:11]}  g5+ {[%clk 0:00:29]} 39. Kg4 {[%clk 0:00:11]}  Kg6 {[%clk 0:00:29]} 40. Ra6+ {[%clk 0:00:11]}  f6 {[%clk 0:00:29]} 41. g3 {[%clk 0:00:10]}  Ra2 {[%clk 0:00:26]} 42. f4 {[%clk 0:00:08]}  gxf4 {[%clk 0:00:25]} 43. gxf4 {[%clk 0:00:09]}  Rg2+ {[%clk 0:00:24]} 44. Kh3 {[%clk 0:00:09]}  Ra2 {[%clk 0:00:23]} 45. Ra5 {[%clk 0:00:07]}  f5 {[%clk 0:00:22]} 46. Kh4 {[%clk 0:00:05]}  Rh2+ {[%clk 0:00:21]} 47. Kg3 {[%clk 0:00:05]}  Ra2 {[%clk 0:00:19]} 48. Kh4 {[%clk 0:00:05]}  Rf2 {[%clk 0:00:17]} 49. Kg3 {[%clk 0:00:05]}  Ra2 {[%clk 0:00:17]} 50. Kh4 {[%clk 0:00:06]} 1/2-1/2


[Site "https://www.chess.com"]

[Event "Titled Tuesday Blitz July 11 Late 2023"]
[White "Lutz, Igor Oscar"]
[Black "Vasques, Antonio Pedro Freixial"]
[WhiteFideId "2110806"]
[BlackFideId "1908332"]
[WhiteElo "1950"]
[BlackElo "2318"]
[Result "0-1"]
[Round "11"]
[TimeControl "180+2"]
[Date "2023.07.11"]
[WhiteClock "0:00:00"]
[BlackClock "0:00:36"]
[Board "110"]

1. d4 {[%clk 0:02:55]}  a6 {[%clk 0:02:59]} 2. c4 {[%clk 0:02:55]}  h6 {[%clk 0:02:59]} 3. Nc3 {[%clk 0:02:56]}  Nf6 {[%clk 0:02:59]} 4. e4 {[%clk 0:02:57]}  d6 {[%clk 0:02:59]} 5. Nf3 {[%clk 0:02:56]}  c5 {[%clk 0:02:59]} 6. Be3 {[%clk 0:02:55]}  cxd4 {[%clk 0:02:57]} 7. Nxd4 {[%clk 0:02:56]}  Nc6 {[%clk 0:02:56]} 8. Be2 {[%clk 0:02:56]}  e6 {[%clk 0:02:56]} 9. Qd2 {[%clk 0:02:49]}  Bd7 {[%clk 0:02:56]} 10. f4 {[%clk 0:02:42]}  Nxd4 {[%clk 0:02:52]} 11. Bxd4 {[%clk 0:02:42]}  Bc6 {[%clk 0:02:53]} 12. Bf3 {[%clk 0:02:41]}  Qa5 {[%clk 0:02:52]} 13. O-O {[%clk 0:02:20]}  Rc8 {[%clk 0:02:49]} 14. e5 {[%clk 0:01:52]}  dxe5 {[%clk 0:02:38]} 15. Bxe5 {[%clk 0:01:51]}  Nd7 {[%clk 0:02:35]} 16. Bd6 {[%clk 0:01:35]}  Bxd6 {[%clk 0:02:32]} 17. Qxd6 {[%clk 0:01:36]}  Qc5+ {[%clk 0:02:33]} 18. Qxc5 {[%clk 0:01:36]}  Nxc5 {[%clk 0:02:33]} 19. Rad1 {[%clk 0:01:30]}  Ke7 {[%clk 0:02:32]} 20. Bxc6 {[%clk 0:01:24]}  Rxc6 {[%clk 0:02:33]} 21. Rd2 {[%clk 0:01:22]}  Rd8 {[%clk 0:02:27]} 22. Rfd1 {[%clk 0:01:22]}  Rxd2 {[%clk 0:02:26]} 23. Rxd2 {[%clk 0:01:23]}  Nd7 {[%clk 0:02:24]} 24. Rd4 {[%clk 0:01:10]}  Nb6 {[%clk 0:01:45]} 25. b3 {[%clk 0:01:09]}  Nc8 {[%clk 0:01:45]} 26. Kf2 {[%clk 0:01:03]}  b5 {[%clk 0:01:42]} 27. Ke3 {[%clk 0:00:40]}  Nd6 {[%clk 0:01:39]} 28. Kd3 {[%clk 0:00:29]}  bxc4+ {[%clk 0:01:31]} 29. bxc4 {[%clk 0:00:30]}  Nf5 {[%clk 0:01:31]} 30. Re4 {[%clk 0:00:23]}  Rd6+ {[%clk 0:01:16]} 31. Kc2 {[%clk 0:00:20]}  Nd4+ {[%clk 0:01:16]} 32. Kb2 {[%clk 0:00:18]}  f5 {[%clk 0:01:16]} 33. Re5 {[%clk 0:00:15]}  Rb6+ {[%clk 0:01:13]} 34. Kc1 {[%clk 0:00:14]}  Rc6 {[%clk 0:01:12]} 35. Ra5 {[%clk 0:00:10]}  Rxc4 {[%clk 0:01:10]} 36. Kd2 {[%clk 0:00:10]}  Rc6 {[%clk 0:01:06]} 37. Kd3 {[%clk 0:00:10]}  Rd6 {[%clk 0:01:05]} 38. Kc4 {[%clk 0:00:10]}  Nc2 {[%clk 0:01:02]} 39. Kc5 {[%clk 0:00:09]}  Rd3 {[%clk 0:00:55]} 40. Kc4 {[%clk 0:00:06]}  Rd4+ {[%clk 0:00:54]} 41. Kc5 {[%clk 0:00:07]}  Rxf4 {[%clk 0:00:54]} 42. a4 {[%clk 0:00:06]}  Nb4 {[%clk 0:00:48]} 43. Ne2 {[%clk 0:00:05]}  Nd3+ {[%clk 0:00:47]} 44. Kb6 {[%clk 0:00:04]}  Re4 {[%clk 0:00:45]} 45. Nc3 {[%clk 0:00:03]}  Rc4 {[%clk 0:00:41]} 46. Ne2 {[%clk 0:00:00]}  Nb4 {[%clk 0:00:36]} 0-1